bitfinex/quotes_SOLUSD_20251204
["timestamp","ask_amount","ask_price","bid_price","bid_amount"]
[1764861042010,14.84391978,142.78,142.75,0.87]
[1764861042225,0.67,142.77,142.75,0.2]
[1764861042837,14.84391978,142.78,142.75,0.2]
[1764861043020,15.55391978,142.78,142.75,7.20521384]
[1764861043217,7.84,142.78,142.75,7.88521384]
[1764861043531,14.84384124,142.78,142.75,0.88]
[1764861043706,14.84384124,142.78,142.75,7.88525168]
[1764861043907,7.84,142.78,142.76,0.68]
[1764861044107,7.00282169,142.8,142.76,3.53762963]
[1764861044325,14.86282169,142.8,142.76,3.53762963]
[1764861044535,7.86,142.8,142.77,8.3342465]
[1764861044737,7.86,142.83,142.79,7.6542465]
[1764861045040,16.2242465,142.83,142.78,0.68]
[1764861045338,7.0021849,142.82,142.78,7.68368186]
[1764861045547,7.0021849,142.82,142.78,15.33792836]
[1764861045748,7.0021849,142.82,142.78,14.65792836]
[1764861046044,7.0021849,142.82,142.79,0.68]
[1764861046440,7.7121849,142.82,142.77,8.3342465]
[1764861046823,7.86,142.81,142.78,0.68]
[1764861047242,7.86,142.81,142.76,24.51612443]
[1764861047447,8.57,142.81,142.77,0.68]
[1764861047823,7.86,142.81,142.77,8.3342465]
[1764861048225,7.86,142.81,142.78,0.68]
[1764861048428,7.86,142.81,142.78,7.68376169]
[1764861049243,15.57236112,142.81,142.77,7.00414085]
[1764861049745,15.57236112,142.81,142.77,7.68414085]
[1764861050617,7.86,142.81,142.77,14.65838735]
[1764861050824,7.84,142.81,142.78,8.3342465]
[1764861051930,7.84,142.81,142.78,7.68375722]
[1764861052125,14.84232774,142.81,142.78,7.68375722]
[1764861052332,14.84232774,142.81,142.78,0.68]
[1764861052532,15.55232774,142.81,142.77,7.68410932]
[1764861052733,15.55232774,142.81,142.77,15.33835582]
[1764861052948,7.84,142.81,142.78,7.00374578]
[1764861053250,15.55234475,142.81,142.78,7.00374578]
[1764861054346,15.55234475,142.81,142.77,7.68414013]
[1764861054546,14.84234475,142.81,142.77,7.68414013]
[1764861054848,14.84234475,142.81,142.78,0.68]
[1764861055051,15.55234475,142.81,142.78,0.68]
[1764861055343,15.55234475,142.81,142.77,14.65838663]
[1764861055525,22.49659125,142.81,142.75,15.7142465]
[1764861055725,0.71,142.8,142.75,8.5342465]
[1764861056028,22.49659125,142.81,142.76,7.68475971]
[1764861056029,40.00236815,142.81,142.76,7.68475971]
[1764861056224,14.84234475,142.81,142.77,14.65842473]
[1764861056428,14.84234475,142.81,142.77,15.33842473]
[1764861057353,0.71,142.8,142.76,14.65879805]
[1764861057541,14.84234475,142.81,142.77,14.65822749]
[1764861057845,14.84234475,142.81,142.77,7.68398099]
[1764861058149,14.84234475,142.81,142.77,15.33822749]
[1764861058327,14.84234475,142.81,142.78,0.68]
[1764861058522,15.55234475,142.81,142.77,15.33822749]
[1764861058739,14.84234475,142.81,142.78,0.68]
[1764861059136,15.55234475,142.81,142.76,15.33881315]
[1764861059336,15.55234475,142.81,142.76,14.65881315]
[1764861059535,15.55234475,142.81,142.76,15.33881315]
[1764861059743,15.55234475,142.81,142.77,0.68]
[1764861060121,23.20659125,142.81,142.77,0.68]
[1764861061162,15.55234475,142.81,142.77,0.68]
[1764861062064,8.3642465,142.8,142.75,0.2]
[1764861062232,7.6542465,142.77,142.75,0.2]
[1764861062422,24.50812165,142.81,142.75,7.8542465]
[1764861062631,7.84,142.8,142.75,7.8542465]
[1764861062940,7.84,142.8,142.76,0.68]
[1764861063242,7.84,142.8,142.76,7.68457257]
[1764861064244,7.84,142.8,142.76,7.00457257]
[1764861064559,7.00225552,142.82,142.77,10.54163351]
[1764861064858,7.84,142.8,142.77,7.68391918]
[1764861065437,7.84,142.8,142.78,0.68]
[1764861066366,0.71,142.87,142.79,9.86100587]
[1764861066567,8.55,142.86,142.8,2.85771433]
[1764861066733,11.40771433,142.86,142.8,3.53771433]
[1764861066937,11.40771433,142.86,142.8,0.68]
[1764861067362,11.40771433,142.86,142.8,3.53771433]
[1764861067666,9.85708438,142.87,142.81,3.53771433]
[1764861067958,7.84,142.86,142.81,3.53771433]
[1764861068159,8.55,142.86,142.81,0.68]
[1764861068335,8.55,142.86,142.82,0.68]
[1764861068668,7.00035001,142.85,142.81,7.6821494]
[1764861069373,0.71,142.84,142.78,24.828864]
[1764861069679,7.84,142.83,142.79,0.68]
[1764861069842,2.85771433,142.82,142.77,0.68]
[1764861070053,11.40771433,142.83,142.78,0.68]
[1764861070450,11.40771433,142.83,142.79,7.00307182]
[1764861070451,14.84142774,142.83,142.79,7.00307182]
[1764861070645,14.84142774,142.83,142.79,9.86078615]
[1764861070960,7.84,142.83,142.8,3.53771433]
[1764861071161,7.84,142.83,142.8,0.68]
[1764861071751,7.84,142.83,142.8,3.53771433]
[1764861072270,6.99993693,142.86,142.82,2.85771433]
[1764861072444,7.84,142.85,142.81,3.53771433]
[1764861072767,7.84,142.85,142.82,7.00182047]
[1764861073058,3.56771433,142.87,142.82,7.71182047]
[1764861073059,14.8395199,142.87,142.82,7.71182047]
[1764861073272,14.8395199,142.87,142.83,3.56771433]
[1764861073755,14.8395199,142.87,142.83,0.71]
[1764861073961,15.5295199,142.87,142.83,0.71]
[1764861074161,6.99890197,142.88,142.84,2.85771433]
[1764861074337,7.84,142.87,142.84,2.85771433]
[1764861074539,7.84,142.87,142.85,0.71]
[1764861075268,8.53,142.87,142.83,0.71]
[1764861075788,0.69,142.86,142.82,7.00173852]
[1764861075945,0.69,142.86,142.82,10.56945285]
[1764861076145,14.83969113,142.87,142.83,0.71]
[1764861077154,15.52969113,142.87,142.83,0.71]
[1764861077861,14.83969113,142.87,142.83,7.711015]
[1764861078456,15.52969113,142.87,142.83,7.711015]
[1764861078657,7.84,142.87,142.84,5.17132355]
[1764861078863,7.84,142.89,142.84,5.17132355]
[1764861079062,7.84,142.89,142.85,0.71]
[1764861079266,6.99741095,142.91,142.86,4.46132355]
[1764861079470,7.84,142.9,142.86,4.46132355]
[1764861079661,7.84,142.9,142.87,0.71]
[1764861079946,7.84,142.9,142.87,7.70933887]
[1764861081081,0.69,142.89,142.84,18.21103989]
[1764861081264,19.98923216,142.9,142.85,7.71003772]
[1764861081465,15.52790861,142.9,142.85,12.17136127]
[1764861081775,15.52790861,142.9,142.86,0.71]
[1764861082186,15.52790861,142.9,142.86,7.70984591]
[1764861082574,19.98923216,142.9,142.86,0.71]
[1764861082885,36.79398373,142.9,142.84,11.46179162]
[1764861083062,5.15132355,142.89,142.84,7.00046807]
[1764861083486,0.69,142.88,142.84,7.71046807]
[1764861083690,0.69,142.88,142.84,7.00056048]
[1764861083892,32.33266018,142.9,142.86,6.99984639]
[1764861083893,7.84,142.9,142.86,6.99984639]
[1764861084065,7.84,142.91,142.88,4.46132355]
[1764861084568,7.84,142.91,142.89,0.71]
[1764861084767,7.84,142.91,142.88,0.71]
[1764861085289,12.30132355,142.91,142.85,7.00003327]
[1764861085488,5.15132355,142.9,142.84,12.17185698]
[1764861085893,0.69,142.89,142.85,7.00029082]
[1764861086092,7.84,142.88,142.85,7.00029082]
[1764861086389,14.83895131,142.88,142.85,0.71]
[1764861086573,7.84,142.88,142.85,0.71]
[1764861086784,7.84,142.88,142.85,5.17132355]
[1764861087874,7.84,142.88,142.85,12.17163795]
[1764861088376,7.84,142.88,142.86,0.71]
[1764861088992,7.84,142.88,142.85,11.46163795]
[1764861089193,7.84,142.88,142.85,12.17163795]
[1764861089601,0.69,142.87,142.83,11.46235673]
[1764861089791,15.52912909,142.88,142.84,0.71]
[1764861090091,15.52912909,142.88,142.84,7.71074834]
[1764861090800,15.52912909,142.88,142.84,0.71]
[1764861091009,0.69,142.87,142.81,7.00215127]
[1764861091302,0.69,142.87,142.82,4.46132355]
[1764861091596,0.69,142.87,142.82,7.00180557]
[1764861091597,6.99986,142.86,142.82,7.00180557]
[1764861091782,6.99986,142.86,142.82,7.71180557]
[1764861091984,7.68986,142.86,142.82,7.00180557]
[1764861092189,8.53,142.85,142.81,7.00223301]
[1764861092382,12.99132355,142.85,142.79,12.174303]
[1764861092695,12.99132355,142.85,142.8,7.00275138]
[1764861093098,0.69,142.84,142.8,7.71275138]
[1764861093500,7.00133025,142.83,142.79,7.00311964]
[1764861093702,12.1523682,142.84,142.79,7.71311964]
[1764861093879,0.69,142.83,142.79,12.17444319]
[1764861095079,0.69,142.83,142.76,8.80994492]
[1764861095080,12.30132355,142.82,142.76,4.46132355]
[1764861095395,12.30132355,142.82,142.76,12.17574369]
[1764861095701,0.69,142.81,142.77,7.00422745]
[1764861095997,0.69,142.81,142.77,12.175551]
[1764861096784,7.69250049,142.81,142.77,7.71422745]
[1764861097094,7.69250049,142.81,142.77,12.175551]
[1764861097502,7.69250049,142.81,142.77,7.71422745]
[1764861097904,0.69,142.8,142.75,0.91]
[1764861098203,7.84,142.79,142.75,5.37132355]
[1764861098390,7.84,142.79,142.75,0.91]
[1764861098582,0.69,142.78,142.75,0.2]
[1764861098783,12.99132355,142.79,142.75,0.91]
[1764861099002,12.30132355,142.79,142.75,0.2]
[1764861099209,12.99132355,142.79,142.75,0.2]
[1764861099387,5.15132355,142.78,142.75,0.2]
[1764861099902,7.69444401,142.77,142.75,0.2]
[1764861100208,7.84,142.76,142.75,0.2]
[1764861101510,14.84476323,142.76,142.75,0.2]
[1764861101805,15.53476323,142.76,142.75,0.2]
[1764861102210,14.84476323,142.76,142.75,0.2]
[1764861102396,15.53476323,142.76,142.75,0.2]
[1764861102998,14.84476323,142.76,142.75,0.2]
[1764861103511,15.51476323,142.76,142.75,0.2]
[1764861103803,14.84476323,142.76,142.75,0.2]
[1764861109606,7.84,142.76,142.75,0.2]
[1764861111017,7.00399622,142.78,142.75,5.38132355]
[1764861111207,0.67,142.83,142.77,4.46132355]
[1764861111414,14.84182047,142.82,142.77,11.46541491]
[1764861111589,14.84182047,142.82,142.77,12.18541491]
[1764861111795,15.51182047,142.82,142.78,0.72]
[1764861112500,19.97314402,142.82,142.78,0.72]
[1764861114024,19.97314402,142.82,142.78,12.18507843]
[1764861114025,7.84,142.82,142.78,12.18507843]
[1764861114197,7.84,142.82,142.78,7.72375488]
[1764861114393,7.84,142.82,142.8,4.46132355]
[1764861114823,7.84,142.82,142.8,0.72]
[1764861115024,7.84,142.82,142.8,5.18132355]
[1764861115403,7.84,142.82,142.81,0.72]
[1764861116237,7.84,142.82,142.81,5.18132355]
[1764861116525,7.84,142.82,142.81,0.72]
[1764861116822,7.84,142.84,142.81,7.72228073]
[1764861117030,7.67002761,142.86,142.81,12.18360428]
[1764861117199,7.84,142.84,142.82,0.72]
[1764861117405,7.84,142.84,142.82,5.18132355]
[1764861117606,6.99957908,142.87,142.83,11.46244]
[1764861117607,7.84,142.86,142.83,11.46244]
[1764861117936,7.84,142.86,142.84,0.72]
[1764861118100,7.84,142.87,142.84,0.72]
[1764861118543,5.13132355,142.89,142.85,4.46132355]
[1764861118544,6.99853321,142.89,142.85,4.46132355]
[1764861118740,6.99853321,142.89,142.84,5.18132355]
[1764861118741,7.84,142.88,142.84,5.18132355]
[1764861119025,7.84,142.88,142.85,0.72]
[1764861119333,7.84,142.88,142.86,4.46132355]
[1764861119501,7.84,142.88,142.86,0.72]
[1764861119703,7.84,142.88,142.86,7.71975373]
[1764861120626,8.80994492,142.93,142.86,7.71975373]
[1764861120627,7.84,142.95,142.87,9.6426471]
[1764861120803,7.84,142.95,142.9,4.46132355]
[1764861121007,12.97132355,142.95,142.89,4.46132355]
[1764861121302,7.84,142.96,142.93,4.46132355]
[1764861121505,7.84,142.96,142.92,0.72]
[1764861121830,19.96671033,142.96,142.92,0.72]
[1764861122200,19.96671033,142.96,142.9,6.99750001]
[1764861122201,4.46132355,142.95,142.9,6.99750001]
[1764861122409,0.67,142.95,142.89,21.49018755]
[1764861122617,5.13132355,142.94,142.88,12.18015889]
[1764861122821,7.84,142.93,142.88,12.18015889]
[1764861122999,7.84,142.93,142.89,0.72]
[1764861123625,4.46132355,142.92,142.87,19.30054353]
[1764861123944,12.12835783,142.92,142.87,11.46054353]
[1764861124108,7.66703428,142.92,142.88,0.72]
[1764861124300,7.84,142.93,142.88,5.18132355]
[1764861124505,8.51,142.93,142.88,0.72]
[1764861124704,0.1,142.97,142.92,11.82579957]
[1764861124926,14.93487698,142.97,142.91,16.308864]
[1764861125127,11.82579957,142.94,142.88,8.56]
[1764861125331,0.67,142.96,142.89,12.54579957]
[1764861125514,7.84,142.94,142.91,11.82579957]
[1764861125835,7.84,142.94,142.89,0.72]
[1764861126125,14.83594588,142.94,142.9,6.99788859]
[1764861126331,7.94,142.97,142.92,16.308864]
[1764861126630,7.94,142.97,142.94,11.82579957]
[1764861126822,7.94,142.97,142.92,16.308864]
[1764861127014,8.61,142.97,142.93,12.54579957]
[1764861127215,7.94,142.97,142.94,11.82579957]
[1764861127410,7.94,142.97,142.94,12.54579957]
[1764861127614,0.1,142.97,142.96,11.82579957]
[1764861127922,0.1,142.97,142.96,18.82076319]
[1764861128234,0.1,142.97,142.96,19.54076319]
[1764861128925,0.1,142.97,142.96,28.35070811]
[1764861129449,0.1,143.01,143.0,11.82579957]
[1764861129740,0.1,143.01,143.0,18.81880656]
[1764861129940,0.1,143.01,143.0,19.53880656]
[1764861130234,0.1,143.01,142.98,11.82579957]
[1764861130409,7.76282589,143.01,142.97,11.82579957]
[1764861131130,7.76282589,143.01,142.97,18.82020739]
[1764861131512,0.1,143.01,142.98,11.82579957]
[1764861131734,0.1,143.01,142.97,23.30333836]
[1764861131939,0.1,143.01,143.0,39.96046314]
[1764861132117,0.1,143.01,143.0,28.13466357]
[1764861132318,0.1,143.01,143.0,28.85466357]
[1764861132516,0.1,143.01,143.0,40.68046314]
[1764861132953,0.1,143.01,143.0,28.85466357]
[1764861133722,0.1,143.01,143.0,35.84767056]
[1764861134014,0.1,143.01,143.0,6.99300699]
[1764861134230,0.1,143.01,143.0,19.48880656]
[1764861134636,0.1,143.01,143.0,35.79767056]
[1764861134812,0.1,143.01,143.0,47.62347013]
[1764861135013,0.1,143.01,143.0,56.43341505]
[1764861135434,0.1,143.01,143.0,35.79767056]
[1764861136517,0.1,143.01,143.0,15.28986578]
[1764861137213,0.1,143.01,142.98,7.6638684]
[1764861137414,0.72,143.0,142.96,14.62173948]
[1764861137636,0.72,143.0,142.96,15.29173948]
[1764861137818,6.99349604,142.99,142.96,7.62685879]
[1764861138138,6.99349604,142.99,142.93,7.62685879]
[1764861138440,7.82,143.0,142.96,7.62685879]
[1764861138630,7.82,143.0,142.97,7.62685879]
[1764861138631,0.72,143.0,142.97,7.62685879]
[1764861138834,8.54,143.0,142.94,0.67]
[1764861139135,15.533111,143.0,142.97,7.62685879]
[1764861139344,15.533111,143.0,142.94,18.15984499]
[1764861139530,23.15996979,143.0,142.95,6.99528648]
[1764861139732,0.1,143.01,142.99,7.62685879]
[1764861140038,0.1,143.01,143.0,7.62685879]
[1764861140849,0.1,143.01,142.99,7.62685879]
[1764861141147,7.09260415,143.01,142.97,6.99436839]
[1764861141439,7.09260415,143.01,142.98,7.62685879]
[1764861141747,7.09260415,143.01,142.97,14.62122718]
[1764861141961,6.99349604,142.99,142.96,7.62685879]
[1764861142169,6.99349604,142.99,142.95,14.62212205]
[1764861142344,7.71349604,142.99,142.95,6.99526326]
[1764861142666,0.72,142.98,142.94,7.66586598]
[1764861142833,0.72,142.98,142.95,7.62685879]
[1764861143169,8.34685879,142.98,142.93,7.62685879]
[1764861143392,7.62685879,142.97,142.92,7.62685879]
[1764861143546,0.72,142.96,142.92,7.62685879]
[1764861144075,0.72,142.96,142.9,7.62685879]
[1764861144076,7.62685879,142.95,142.9,7.62685879]
[1764861144428,24.48251629,142.96,142.92,7.62685879]
[1764861144630,25.20251629,142.96,142.92,7.62685879]
[1764861144859,0.72,142.95,142.91,8.29685879]
[1764861145030,0.72,142.95,142.91,7.62685879]
[1764861145230,15.44685879,142.94,142.88,6.99869041]
[1764861145448,7.62685879,142.92,142.87,14.62607248]
[1764861145658,8.34685879,142.93,142.88,7.62685879]
[1764861145858,8.34685879,142.93,142.87,14.62607248]
[1764861145859,7.62685879,142.92,142.87,14.62607248]
[1764861146129,6.99741095,142.91,142.87,7.62685879]
[1764861146333,15.34426974,142.91,142.86,14.62653648]
[1764861146533,7.71741095,142.91,142.87,7.62685879]
[1764861146831,7.71741095,142.91,142.87,14.62614529]
[1764861147027,0.72,142.9,142.87,14.62614529]
[1764861147330,8.34685879,142.9,142.85,7.0000371]
[1764861147532,8.34685879,142.9,142.85,14.62689589]
[1764861147743,0.72,142.89,142.85,14.62689589]
[1764861147955,15.34567744,142.89,142.84,7.00071215]
[1764861148155,7.62685879,142.88,142.81,25.9952217]
[1764861148344,7.62685879,142.88,142.83,7.00127829]
[1764861148345,7.62685879,142.87,142.83,7.00127829]
[1764861148540,8.34685879,142.87,142.82,7.62685879]
[1764861148856,7.62685879,142.84,142.79,0.2146211]
[1764861149059,7.62685879,142.84,142.79,7.84147989]
[1764861149263,0.72,142.83,142.79,14.84439108]
[1764861149438,0.72,142.83,142.79,15.51439108]
[1764861149661,7.62685879,142.84,142.79,0.8846211]
[1764861149865,8.34685879,142.83,142.79,0.2146211]
[1764861150167,7.72150751,142.83,142.79,7.84147989]
[1764861150634,0.72,142.83,142.79,15.51466434]
[1764861150961,8.54,142.86,142.81,7.62685879]
[1764861151162,7.82,142.87,142.8,0.67]
[1764861151557,8.54,142.87,142.8,0.67]
[1764861151850,16.16685879,142.87,142.82,7.62685879]
[1764861152234,15.53940049,142.87,142.83,7.62685879]
[1764861152629,15.53940049,142.87,142.82,7.00181401]
[1764861152862,14.81902209,142.88,142.84,7.62685879]
[1764861153358,15.53902209,142.88,142.84,7.62685879]
[1764861155480,0.72,142.87,142.83,7.62685879]
[1764861156778,7.7196578,142.87,142.83,7.62685879]
[1764861157254,6.9996578,142.87,142.83,8.29685879]
[1764861157462,7.7196578,142.87,142.84,7.62685879]
[1764861158549,7.82,142.88,142.85,8.29685879]
[1764861159082,14.81891283,142.88,142.85,7.62685879]
[1764861159249,14.81891283,142.88,142.84,7.0005976]
[1764861159445,7.82,142.88,142.85,8.29685879]
[1764861159647,8.80994492,142.92,142.85,8.29685879]
[1764861159648,0.72,142.94,142.87,7.62685879]
[1764861159876,7.82,142.93,142.9,7.62685879]
[1764861160058,7.82,142.93,142.92,7.62685879]
[1764861160585,7.82,142.96,142.92,8.29685879]
[1764861160790,7.82,142.96,142.92,7.62685879]
[1764861160957,8.54,142.96,142.92,7.62685879]
[1764861161446,7.82,142.96,142.95,7.62685879]
[1764861161644,7.82,142.96,142.91,0.66]
[1764861161868,7.82,142.96,142.89,7.65820863]
[1764861161869,0.66,142.95,142.89,7.65820863]
[1764861162173,7.82,142.96,142.92,7.62685879]
[1764861162371,8.48,142.96,142.92,7.62685879]
[1764861163061,6.99557452,142.95,142.89,24.49371572]
[1764861163270,6.99557452,142.95,142.92,7.62685879]
[1764861163568,14.81508969,142.96,142.9,0.7]
[1764861163876,14.81508969,142.96,142.93,7.62685879]
[1764861164473,14.81508969,142.96,142.95,7.62685879]
[1764861164474,7.82,142.96,142.95,7.62685879]
[1764861164717,7.82,142.96,142.95,0.7]
[1764861164984,7.82,142.96,142.95,8.32685879]
[1764861165193,7.82,142.96,142.95,0.7]
[1764861165370,7.82,142.96,142.95,7.62685879]
[1764861165670,7.82,142.96,142.91,0.7]
[1764861165852,8.5,142.96,142.93,7.62685879]
[1764861166059,0.68,142.95,142.91,6.99725842]
[1764861166252,0.68,142.95,142.91,7.62685879]
[1764861166455,8.30685879,142.95,142.88,33.80547986]
[1764861166751,7.62685879,142.93,142.86,17.49946468]
[1764861166975,7.82,142.92,142.8,7.82]
[1764861167178,15.49740666,142.92,142.88,7.62685879]
[1764861167394,0.68,142.91,142.87,7.62685879]
[1764861167676,22.44426545,142.92,142.9,7.62685879]
[1764861167677,7.82,142.92,142.9,7.62685879]
[1764861167973,7.82,142.92,142.91,7.62685879]
[1764861168364,7.82,142.92,142.88,25.19594131]
[1764861168365,7.82,142.92,142.9,7.62685879]
[1764861169110,0.68,142.96,142.91,8.32685879]
[1764861169318,7.82,142.96,142.93,7.62685879]
[1764861169621,8.5,142.96,142.93,7.62685879]
[1764861170115,7.82,142.96,142.93,7.62685879]
[1764861170475,14.81503638,142.96,142.92,6.99692135]
[1764861170678,15.49503638,142.96,142.93,7.62685879]
[1764861170920,14.81503638,142.96,142.92,15.32378014]
[1764861171686,0.68,142.95,142.92,14.62378014]
[1764861171887,15.49503638,142.96,142.92,14.62378014]
[1764861172082,8.30685879,142.95,142.89,6.99803965]
[1764861172502,6.99594235,142.94,142.9,7.62685879]
[1764861172716,7.82,142.93,142.89,14.62489844]
[1764861172889,7.82,142.93,142.89,15.32489844]
[1764861173091,8.5,142.93,142.89,15.32489844]
[1764861173393,7.82,142.93,142.91,7.62685879]
[1764861173598,9.48994492,142.99,142.92,7.62685879]
[1764861173785,0.68,142.99,142.93,0.31]
[1764861173985,0.1,143.01,142.95,7.62685879]
[1764861173986,0.68,142.98,142.95,7.62685879]
[1764861174188,0.68,142.98,142.94,7.62685879]
[1764861174383,6.99447436,142.97,142.93,7.62685879]
[1764861174606,0.68,142.96,142.92,85.60563293]
[1764861174928,0.68,142.96,142.91,7.82]
[1764861174929,8.30685879,142.96,142.91,7.62685879]
[1764861175214,7.82,142.95,142.91,7.62685879]
[1764861175426,8.5,142.95,142.91,14.62416618]
[1764861175598,8.5,142.95,142.89,16.618864]
[1764861175794,7.82,142.95,142.93,7.62685879]
[1764861175987,7.82,142.95,142.92,7.62685879]
[1764861176215,0.68,142.94,142.91,7.62685879]
[1764861176514,0.68,142.94,142.9,7.62685879]
[1764861176715,0.68,142.94,142.9,14.62470268]
[1764861177011,0.68,142.94,142.9,6.99784389]
[1764861177202,15.30302393,142.94,142.88,15.44685879]
[1764861177404,7.67616514,142.94,142.89,14.6249381]
[1764861177596,0.68,142.93,142.9,14.62467225]
[1764861178298,0.68,142.93,142.9,6.99781346]
[1764861178501,0.68,142.93,142.89,6.99822795]
[1764861178701,7.67686464,142.93,142.89,14.62508674]
[1764861178904,7.67686464,142.93,142.89,6.99822795]
[1764861179099,0.68,142.92,142.89,14.62508674]
[1764861179507,6.99612511,142.94,142.9,7.62685879]
[1764861179724,0.68,142.92,142.9,7.62685879]
[1764861180302,8.5,142.95,142.91,7.62685879]
[1764861180496,8.5,142.95,142.92,7.62685879]
[1764861180801,8.5,142.95,142.93,6.99643181]
[1764861182098,0.68,142.94,142.9,7.62685879]
[1764861182415,0.68,142.94,142.9,14.6244701]
[1764861183319,0.68,142.94,142.91,6.997301]
[1764861183738,0.68,142.94,142.9,6.99772559]
[1764861183739,7.6759871,142.94,142.9,6.99772559]
[1764861183927,7.6759871,142.94,142.9,14.62458438]
[1764861184128,0.68,142.93,142.9,14.62458438]
[1764861185138,0.68,142.93,142.9,7.62685879]
[1764861185340,0.68,142.93,142.89,14.62524916]
[1764861185642,15.49562217,142.95,142.9,7.62685879]
[1764861185845,7.82,142.95,142.92,7.62685879]
[1764861186158,0.68,142.96,142.94,7.62685879]
[1764861186651,0.68,142.96,142.9,0.31]
[1764861186848,0.68,142.96,142.93,7.62685879]
[1764861187148,7.82,142.97,142.94,6.99594235]
[1764861187344,8.5,142.97,142.94,14.62280114]
[1764861187645,0.68,142.96,142.94,14.62280114]
[1764861188241,0.68,142.96,142.94,6.99594235]
[1764861188928,0.68,142.96,142.94,14.62280114]
[1764861189245,7.67360507,142.99,142.95,7.62685879]
[1764861189441,7.67360507,142.99,142.96,7.62685879]
[1764861189442,0.68,142.99,142.96,7.62685879]
[1764861189639,8.5,142.99,142.96,7.62685879]
[1764861189827,8.5,142.99,142.95,7.62685879]
[1764861190026,0.68,142.98,142.96,7.62685879]
[1764861190235,0.68,142.98,142.93,6.99629633]
[1764861190445,7.82,142.99,142.94,6.99571248]
[1764861190648,0.68,142.98,142.94,6.99571248]
[1764861190949,0.68,142.98,142.95,7.62685879]
[1764861191150,7.82,142.99,142.96,7.62685879]
[1764861191443,7.82,142.99,142.9,17.494421]
[1764861191444,8.30685879,142.98,142.9,17.494421]
[1764861191654,0.68,142.98,142.91,7.62685879]
[1764861191955,0.68,142.97,142.93,7.62685879]
[1764861192121,0.68,142.97,142.94,7.62685879]
[1764861192122,8.5,142.97,142.94,7.62685879]
[1764861192324,8.5,142.99,142.96,7.62685879]
[1764861192529,0.68,142.98,142.96,7.62685879]
[1764861193248,7.67399334,142.98,142.96,7.62685879]
[1764861193451,7.67399334,142.98,142.93,6.99606338]
[1764861193618,6.99399334,142.98,142.94,7.62685879]
[1764861193824,0.68,142.97,142.95,7.62685879]
[1764861194325,0.68,142.97,142.94,7.62685879]
[1764861195045,0.68,142.97,142.93,7.62685879]
[1764861195250,6.99496362,142.96,142.93,7.62685879]
[1764861195422,8.80994492,143.0,142.95,7.62685879]
[1764861195623,15.59299982,143.01,142.99,7.62685879]
[1764861195849,8.6,143.01,142.99,7.62685879]
[1764861196023,0.68,143.0,142.99,7.62685879]
[1764861196217,0.68,143.0,142.97,7.62685879]
[1764861197034,0.68,143.0,142.93,6.99606717]
[1764861197244,7.62685879,142.99,142.94,7.62685879]
[1764861197448,14.81398517,142.98,142.95,7.62685879]
[1764861197837,7.82,142.98,142.96,7.62685879]
[1764861198051,8.5,142.98,142.97,7.62685879]
[1764861198349,0.68,142.97,142.95,7.62685879]
[1764861198537,0.68,142.97,142.94,6.99571745]
[1764861198744,0.68,143.0,142.96,11.81585916]
[1764861199053,0.68,143.0,142.98,11.81585916]
[1764861200474,0.68,143.0,142.94,16.308864]
[1764861200475,7.67307544,143.0,142.96,18.81044075]
[1764861200637,7.67307544,143.0,142.97,11.81585916]
[1764861200957,0.68,142.99,142.97,11.81585916]
[1764861201332,0.68,142.99,142.96,11.81585916]
[1764861201536,0.1,143.01,142.92,25.31183724]
[1764861201537,7.09265439,143.01,142.97,11.81585916]
[1764861201832,0.1,143.01,143.0,11.81585916]
[1764861202029,0.68,143.0,142.98,11.81585916]
[1764861202229,0.68,143.0,142.96,6.99480083]
[1764861202429,0.68,143.0,142.97,11.81585916]
[1764861202670,0.1,143.01,142.99,11.81585916]
[1764861202842,0.1,143.01,143.0,11.81585916]
[1764861203545,0.1,143.01,142.97,24.7906459]